bitfinex-derivatives/quotes_BNBF0:USTF0_20250908
["timestamp","ask_amount","ask_price","bid_price","bid_amount"]
[1757363167415,0.6108848,875.34,873.98,1.5236796]
[1757363167615,0.6108848,875.33,873.98,1.5236796]
[1757363167814,0.6108848,875.33,873.26,2.539466]
[1757363167815,0.5497964,875.32,874.03,1.5236796]
[1757363168017,1.5330591,875.46,874.03,1.5236796]
[1757363168315,1.5330591,875.47,874.02,1.5236796]
[1757363169312,1.5330591,875.48,874.02,1.5236796]
[1757363170318,1.5330591,875.49,874.01,1.5236796]
[1757363171313,1.5330591,875.5,874.0,1.5236796]
[1757363171615,1.5330591,875.47,874.03,1.5236796]
[1757363171914,1.5330591,875.46,874.02,1.5236796]
[1757363172119,1.5330591,875.48,874.01,1.5236796]
[1757363172317,1.5330591,875.49,874.01,1.5236796]
[1757363172515,1.5330591,875.46,874.03,1.5236796]
[1757363172914,1.5330591,875.46,874.04,1.5236796]
[1757363173319,1.5330591,875.46,874.03,1.5236796]
[1757363173819,1.3797532,875.46,874.04,1.5236796]
[1757363174420,2.5619504,876.08,874.03,1.5236796]
[1757363175415,2.5619504,876.09,874.03,1.5236796]
[1757363175819,2.5619504,876.08,874.03,1.5236796]
[1757363176419,2.5619504,876.1,874.02,1.5236796]
[1757363176619,2.5619504,876.1,874.03,1.5236796]
[1757363176919,2.5619504,876.07,874.03,1.5236796]
[1757363177114,2.52773351,876.07,874.04,1.5236796]
[1757363177316,3.5478291,876.4,873.43,2.539466]
[1757363177317,3.5478291,876.37,874.03,1.5236796]
[1757363178019,3.5478291,876.37,873.45,2.539466]
[1757363178020,3.5478291,876.37,874.27,0.19844268]
[1757363178319,3.5478291,876.34,874.27,0.19844268]
[1757363179820,0.60682885,876.33,874.27,0.19844268]
[1757363180020,0.60682885,876.32,874.27,0.19844268]
[1757363180320,0.60682885,876.31,874.27,0.19844268]
[1757363180520,0.60682885,876.3,874.27,0.19844268]
[1757363180816,0.60682885,876.29,874.27,0.19844268]
[1757363181118,0.60682885,876.28,874.27,0.19844268]
[1757363181317,0.60682885,876.27,874.27,0.19844268]
[1757363181521,0.60682885,876.26,874.27,0.19844268]
[1757363181820,0.60682885,876.25,874.27,0.19844268]
[1757363182116,0.60682885,876.24,874.27,0.19844268]
[1757363182318,0.60682885,876.23,874.27,0.19844268]
[1757363182521,0.60682885,876.22,874.27,0.19844268]
[1757363182720,0.60682885,876.21,874.27,0.19844268]
[1757363182917,0.60682885,876.2,874.27,0.19844268]
[1757363183221,0.60682885,876.19,874.27,0.19844268]
[1757363183415,0.60682885,876.18,874.27,0.19844268]
[1757363183619,0.60682885,876.17,874.27,0.19844268]
[1757363183820,0.60682885,876.16,874.27,0.19844268]
[1757363184020,0.60682885,876.15,874.27,0.19844268]
[1757363184216,0.60682885,876.14,874.27,0.19844268]
[1757363184417,0.60682885,876.13,874.27,0.19844268]
[1757363184616,0.60682885,876.12,874.27,0.19844268]
[1757363184815,0.60682885,876.11,874.27,0.19844268]
[1757363185020,3.5478291,876.4,874.27,0.19844268]
[1757363185021,0.60682885,876.1,874.27,0.19844268]
[1757363185217,0.60682885,876.09,874.27,0.19844268]
[1757363185419,0.60682885,876.08,874.27,0.19844268]
[1757363185618,0.60682885,876.07,874.27,0.19844268]
[1757363185818,0.60682885,876.06,874.27,0.19844268]
[1757363186020,0.60682885,876.05,874.27,0.19844268]
[1757363186220,0.60682885,876.04,874.27,0.19844268]
[1757363186417,0.60682885,876.03,874.27,0.19844268]
[1757363186619,0.60682885,876.02,874.27,0.19844268]
[1757363186819,0.60682885,876.01,874.27,0.19844268]
[1757363187019,0.57261381,876.0,874.27,0.19844268]
[1757363187216,2.549623,877.02,874.27,0.19844268]
[1757363187418,2.549623,876.9,874.27,0.19844268]
[1757363188720,2.549623,877.12,874.27,0.19844268]
[1757363190724,2.549623,877.08,874.27,0.19844268]
[1757363191121,2.549623,876.94,874.27,0.19844268]
[1757363192121,2.549623,876.95,874.27,0.19844268]
[1757363193922,1.5269086,876.01,874.27,0.19844268]
[1757363195226,1.5269086,875.85,874.27,0.19844268]
[1757363196128,1.3967699,875.85,874.27,0.19844268]
[1757363196727,2.549623,876.62,874.27,0.19844268]
[1757363196925,2.549623,876.63,874.27,0.19844268]
[1757363197928,2.549623,876.65,874.27,0.19844268]
[1757363200526,2.549623,876.5,874.27,0.19844268]
[1757363200928,2.549623,876.43,874.27,0.19844268]
[1757363201724,2.549623,876.32,874.27,0.19844268]
[1757363202030,2.549623,876.65,874.27,0.19844268]
[1757363202525,2.549623,876.66,874.27,0.19844268]
[1757363203826,2.549623,876.65,874.27,0.19844268]
[1757363207931,2.549623,876.64,874.27,0.19844268]
[1757363210536,2.549623,876.74,874.27,0.19844268]
[1757363211632,2.549623,876.82,874.27,0.19844268]
[1757363212033,2.549623,876.66,874.27,0.19844268]
[1757363213335,2.549623,876.66,874.27,1.21358518]
[1757363214338,2.549623,876.66,874.29,1.0151425]
[1757363215438,2.549623,876.66,874.31,1.0151425]
[1757363215734,2.549623,876.67,874.31,1.0151425]
[1757363216034,1.5279404,875.93,874.31,1.0151425]
[1757363216334,1.5279404,875.94,874.33,1.0151425]
[1757363217335,1.5279404,875.94,874.34,1.0151425]
[1757363217637,1.5279404,875.94,874.33,1.0151425]
[1757363217835,1.5279404,875.94,874.34,1.0151425]
[1757363218338,1.5279404,875.94,874.35,1.0151425]
[1757363219335,1.5279404,875.93,874.36,1.0151425]
[1757363220236,1.5279404,875.92,874.37,1.0151425]
[1757363220439,1.5279404,875.87,874.32,1.0151425]
[1757363220840,1.5279404,875.83,874.34,1.0151425]
[1757363221438,1.5279404,875.83,874.36,1.0151425]
[1757363222341,1.5279404,875.82,874.36,1.0151425]
[1757363223238,1.5279404,875.83,874.36,1.0151425]
[1757363225140,5.0683273,877.44,874.37,1.0151425]
[1757363225141,1.5279404,875.82,874.37,1.0151425]
[1757363226144,1.5279404,875.8,874.38,1.0151425]
[1757363226344,1.5279404,875.79,874.39,1.0151425]
[1757363226644,2.549623,876.49,874.27,0.19844268]
[1757363226645,1.5279404,875.75,874.41,1.0151425]
[1757363226944,1.5279404,875.73,874.42,1.0151425]
[1757363227444,2.549623,876.35,874.43,1.0151425]
[1757363227641,2.549623,876.33,874.43,1.0151425]
[1757363228144,2.549623,876.32,874.43,1.0151425]
[1757363228646,2.549623,876.34,874.43,1.0151425]
[1757363229043,2.549623,876.34,874.42,1.0151425]
[1757363229248,2.549623,876.4,874.42,1.0151425]
[1757363229446,2.549623,876.4,874.41,1.0151425]
[1757363229946,2.549623,876.41,874.41,1.0151425]
[1757363230447,2.549623,876.41,874.46,1.0151425]
[1757363230843,2.549623,876.44,874.46,1.0151425]
[1757363231344,2.549623,876.43,874.46,1.0151425]
[1757363231547,2.549623,876.43,874.47,1.0151425]
[1757363232048,2.549623,876.42,874.47,1.0151425]
[1757363233149,2.549623,876.42,874.48,1.0151425]
[1757363233350,2.549623,876.39,874.48,1.0151425]
[1757363234347,2.549623,876.39,874.49,1.0151425]
[1757363234646,0.19844325,877.53,874.49,1.0151425]
[1757363234647,2.549623,876.38,874.49,1.0151425]
[1757363235049,2.549623,876.39,874.49,1.0151425]
[1757363235546,2.549623,876.38,874.49,1.0151425]
[1757363235948,2.549623,876.37,874.49,1.0151425]
[1757363236247,2.549623,876.37,874.5,1.0151425]
[1757363237345,2.549623,876.37,874.51,1.0151425]
[1757363237550,2.549623,876.36,874.51,1.0151425]
[1757363238052,2.549623,876.35,874.51,1.0151425]
[1757363238353,2.549623,876.35,874.52,1.0151425]
[1757363238549,2.549623,876.39,874.5,1.0151425]
[1757363239148,2.549623,876.34,874.52,1.0151425]
[1757363239352,2.549623,876.34,874.53,1.0151425]
[1757363239650,2.549623,876.31,874.53,1.0151425]
[1757363240350,2.549623,876.31,874.5,1.0151425]
[1757363240649,2.549623,876.24,874.5,1.0151425]
[1757363240853,2.549623,876.24,874.49,1.0151425]
[1757363241154,2.549623,876.25,874.49,1.0151425]
[1757363241351,2.549623,876.25,874.5,1.0151425]
[1757363241651,2.549623,876.24,874.5,1.0151425]
[1757363242050,2.549623,876.24,874.51,1.0151425]
[1757363242256,2.549623,876.23,874.51,1.0151425]
[1757363242450,2.549623,876.23,874.52,1.0151425]
[1757363242754,2.549623,876.23,874.37,1.5236796]
[1757363242755,2.549623,876.26,874.5,1.0151425]
[1757363243256,2.549623,876.27,874.5,1.0151425]
[1757363243555,2.549623,876.27,874.52,1.0151425]
[1757363243855,2.549623,876.25,874.51,1.0151425]
[1757363244353,2.549623,876.23,874.52,1.0151425]
[1757363244556,2.549623,876.23,874.53,1.0151425]
[1757363244757,2.549623,876.21,874.53,1.0151425]
[1757363245358,2.549623,876.19,874.55,1.0151425]
[1757363246258,2.549623,876.19,874.58,1.0151425]
[1757363246460,2.549623,876.16,874.58,1.0151425]
[1757363247254,2.549623,876.16,874.59,1.0151425]
[1757363247460,1.5362047,875.55,874.59,1.0151425]
[1757363247656,0.82558849,875.55,874.59,1.0151425]
[1757363248269,2.549623,876.16,874.61,1.0151425]
[1757363248568,2.549623,876.17,874.63,1.0151425]
[1757363248968,2.549623,876.09,874.63,1.0151425]
[1757363249170,0.61313685,876.08,874.46,1.5236796]
[1757363249368,0.61313685,876.07,874.46,1.5236796]
[1757363249566,3.16275985,876.06,874.46,1.5236796]
[1757363249769,0.61313685,876.05,874.46,1.5236796]
[1757363249969,0.61313685,876.04,874.46,1.5236796]
[1757363250269,2.549623,876.06,874.45,1.5236796]
[1757363250270,0.61313685,876.03,874.45,1.5236796]
[1757363250468,0.61313685,876.02,874.5,1.5236796]
[1757363250666,0.61313685,876.01,874.5,1.5236796]
[1757363250865,0.61313685,876.0,874.5,1.5236796]
[1757363251072,0.61313685,875.99,874.5,1.5236796]
[1757363251368,0.61313685,875.98,874.51,1.5236796]
[1757363251567,0.61313685,875.97,874.51,1.5236796]
[1757363251768,0.61313685,875.96,874.51,1.5236796]
[1757363251969,0.61313685,875.95,874.51,1.5236796]
[1757363252169,0.61313685,875.94,874.51,1.5236796]
[1757363252368,0.61313685,875.93,874.51,1.5236796]
[1757363252568,0.61313685,875.92,874.54,1.5236796]
[1757363252866,0.61313685,875.91,874.54,1.5236796]
[1757363253072,0.61313685,875.9,874.54,1.5236796]
[1757363253270,0.61313685,875.89,874.54,1.5236796]
[1757363253470,0.61313685,875.88,874.54,1.5236796]
[1757363253667,0.54997595,875.87,874.54,1.5236796]
[1757363253871,2.549623,876.09,874.54,1.5236796]
[1757363258474,2.549623,876.09,874.53,1.5236796]
[1757363258777,2.549623,876.12,874.53,1.5236796]
[1757363260075,2.549623,876.12,874.54,1.5236796]
[1757363260375,2.549623,876.06,874.51,1.5236796]
[1757363260679,2.29052306,876.06,874.38,1.5236796]
[1757363260873,3.5478291,876.34,874.38,1.5236796]
[1757363261275,3.5478291,876.34,874.39,1.5236796]
[1757363261479,3.5478291,876.72,874.38,1.5236796]
[1757363261679,3.5478291,876.72,874.39,1.5236796]
[1757363262477,3.5478291,876.78,874.4,1.5236796]
[1757363262778,3.5478291,876.78,874.44,1.5236796]
[1757363263381,3.5478291,876.78,874.42,1.5236796]
[1757363263578,3.5478291,876.95,874.42,1.5236796]
[1757363264477,3.5478291,876.96,874.42,1.5236796]
[1757363264981,3.5478291,876.96,874.39,1.5236796]
[1757363265582,3.5478291,877.06,874.38,1.5236796]
[1757363265782,0.6095078,877.05,874.38,1.5236796]
[1757363265981,0.6095078,877.04,874.38,1.5236796]
[1757363266181,3.5478291,877.06,874.38,1.5236796]
[1757363266182,0.6095078,877.03,874.38,1.5236796]
[1757363266382,0.6095078,877.02,874.38,1.5236796]
[1757363266679,0.6095078,877.01,874.38,1.5236796]
[1757363266880,0.6095078,877.0,874.38,1.5236796]
[1757363267085,0.6095078,876.99,874.38,1.5236796]
[1757363267284,0.6095078,876.98,874.38,1.5236796]
[1757363267483,0.6095078,876.97,874.37,1.5236796]
[1757363267681,1.5357193,875.85,874.37,1.5236796]
[1757363267886,0.6095078,875.84,874.37,1.5236796]
[1757363268186,0.6095078,875.83,874.37,1.5236796]
[1757363268379,0.6095078,875.82,874.37,1.5236796]
[1757363268581,0.6095078,875.81,874.37,1.5236796]
[1757363268780,0.6095078,875.8,874.37,1.5236796]
[1757363268984,0.6095078,875.79,874.37,1.5236796]
[1757363269185,0.6095078,875.78,874.37,1.5236796]
[1757363269385,0.6095078,875.77,874.37,1.5236796]
[1757363269680,0.6095078,875.76,874.37,1.5236796]
[1757363269884,0.6095078,875.75,874.37,1.5236796]
[1757363270184,0.6095078,875.74,874.37,1.5236796]
[1757363270384,0.6095078,875.73,874.38,1.5236796]
[1757363270580,0.6095078,875.72,874.37,1.5236796]
[1757363270785,0.6095078,875.71,874.37,1.5236796]
[1757363271081,0.6095078,875.7,874.37,1.5236796]
[1757363271384,0.6095078,875.69,874.37,1.5236796]
[1757363271584,0.6095078,875.68,874.37,1.5236796]
[1757363271783,0.6095078,875.67,874.37,1.5236796]
[1757363272081,0.6095078,875.66,874.37,1.5236796]
[1757363272284,0.6095078,875.65,874.37,1.5236796]
[1757363272484,0.54855703,875.64,874.38,1.5236796]
[1757363272781,1.5357193,875.78,874.39,1.5236796]
[1757363272982,1.5357193,875.78,874.4,1.5236796]
[1757363273180,1.5357193,875.78,874.39,1.5236796]
[1757363273383,1.5357193,875.79,874.39,1.5236796]
[1757363273884,1.5357193,875.78,874.39,1.5236796]
[1757363274480,1.5357193,875.79,874.39,1.5236796]
[1757363274780,1.5357193,875.75,874.42,1.5236796]
[1757363275981,1.5357193,875.74,874.42,1.5236796]
[1757363276582,1.5357193,875.75,874.42,1.5236796]
[1757363278382,1.5357193,875.76,874.41,1.5236796]
[1757363278586,1.38214738,875.76,874.41,1.5236796]
[1757363278786,2.5591756,876.46,874.38,1.5236796]
[1757363278984,2.5591756,876.56,874.38,1.5236796]
[1757363279188,2.5591756,876.56,874.46,1.0212281]
[1757363279388,2.5591756,876.97,874.46,1.0212281]
[1757363279989,2.5591756,876.97,874.45,1.0212281]
[1757363280285,2.5591756,876.97,874.27,0.19844268]
[1757363280489,2.5591756,876.99,874.27,0.19844268]
[1757363280886,2.5591756,876.98,874.27,0.19844268]
[1757363283485,2.5591756,876.99,874.27,0.19844268]
[1757363284591,0.61025092,876.98,874.27,0.19844268]
[1757363284790,0.61025092,876.97,874.27,0.19844268]
[1757363285087,0.61025092,876.96,874.27,0.19844268]
[1757363285290,0.61025092,876.95,874.27,0.19844268]
[1757363285488,0.61025092,876.94,874.27,0.19844268]
[1757363285691,0.61025092,876.93,874.27,0.19844268]
[1757363285892,0.61025092,876.92,874.27,0.19844268]
[1757363286188,0.61025092,876.91,874.27,0.19844268]
[1757363286391,0.61025092,876.9,874.27,0.19844268]
[1757363286594,0.61025092,876.89,874.27,0.19844268]
[1757363286791,0.61025092,876.88,874.27,0.19844268]
[1757363286990,0.61025092,876.87,874.27,0.19844268]
[1757363287190,0.61025092,876.86,874.27,0.19844268]
[1757363287393,0.61025092,876.85,874.27,0.19844268]
[1757363287591,0.61025092,876.84,874.27,0.19844268]
[1757363287792,0.61025092,876.83,874.27,0.19844268]
[1757363287994,0.61025092,876.82,874.27,0.19844268]
[1757363288195,0.61025092,876.81,874.27,0.19844268]
[1757363288393,0.61025092,876.8,874.27,0.19844268]
[1757363288696,0.61025092,876.79,874.27,0.19844268]
[1757363288890,0.61025092,876.78,874.27,0.19844268]
[1757363289093,0.61025092,876.77,874.27,0.19844268]
[1757363289293,0.61025092,876.76,874.27,0.19844268]
[1757363289491,0.61025092,876.75,874.27,0.19844268]
[1757363289695,0.61025092,876.74,874.27,0.19844268]
[1757363289899,0.61025092,876.73,874.27,0.19844268]
[1757363290198,0.61025092,876.72,874.27,0.19844268]
[1757363290395,0.61025092,876.71,874.27,0.19844268]
[1757363290596,0.61025092,876.7,874.27,0.19844268]
[1757363290899,0.61025092,876.69,874.27,0.19844268]
[1757363291096,0.61025092,876.68,874.27,0.19844268]
[1757363291297,0.61025092,876.67,874.27,0.19844268]
[1757363291600,0.61025092,876.66,874.27,0.19844268]
[1757363291897,2.5591756,876.53,874.31,1.5236796]
[1757363292097,0.61025092,876.52,874.31,1.5236796]
[1757363292296,0.61025092,876.51,874.31,1.5236796]
[1757363292495,0.61025092,876.5,874.3,1.5236796]
[1757363292700,0.61025092,876.49,874.3,1.5236796]
[1757363292896,2.5591756,876.34,874.37,1.5236796]
[1757363293200,0.61025092,876.33,874.41,1.5236796]
[1757363293400,2.5591756,876.25,874.41,1.5236796]
[1757363293598,0.61025092,876.24,874.41,1.5236796]
[1757363293797,2.5591756,876.25,874.41,1.5236796]
[1757363293798,0.61025092,876.23,874.41,1.5236796]
[1757363293998,0.61025092,876.22,874.41,1.5236796]
[1757363294202,0.61025092,876.21,874.27,0.19844268]
[1757363294404,0.61025092,876.2,874.27,0.19844268]
[1757363294599,0.61025092,876.19,874.27,0.19844268]
[1757363294804,0.61025092,876.18,874.27,0.19844268]
[1757363295002,0.61025092,876.17,874.27,0.19844268]
[1757363295201,0.61025092,876.16,874.27,0.19844268]
[1757363295401,0.61025092,876.15,874.27,0.19844268]
[1757363295600,0.61025092,876.14,874.27,0.19844268]
[1757363295899,0.61025092,876.13,874.27,0.19844268]
[1757363296102,0.61025092,876.12,874.27,0.19844268]
[1757363296301,0.61025092,876.11,874.27,0.19844268]
[1757363296504,0.61025092,876.1,874.27,0.19844268]
[1757363296702,0.61025092,876.09,874.27,0.19844268]
[1757363297007,0.61025092,876.08,874.27,0.19844268]
[1757363297302,0.61025092,876.07,874.27,0.19844268]
[1757363297500,0.61025092,876.06,874.27,0.19844268]
[1757363297706,0.61025092,876.05,874.27,0.19844268]
[1757363297906,0.61025092,876.04,874.27,0.19844268]
[1757363298203,0.61025092,876.03,874.27,0.19844268]
[1757363298402,0.61025092,876.02,874.27,0.19844268]
[1757363298703,1.5349079,875.74,874.27,0.19844268]
[1757363298906,0.61025092,875.73,874.27,0.19844268]
[1757363299101,0.61025092,875.72,874.27,0.19844268]
[1757363299406,0.61025092,875.71,874.27,0.19844268]
[1757363299603,0.61025092,875.7,874.27,0.19844268]
[1757363299804,0.61025092,875.69,874.27,0.19844268]
[1757363300007,1.5349079,875.76,874.27,0.19844268]
[1757363300008,0.61025092,875.68,874.27,0.19844268]
[1757363300207,0.61025092,875.67,874.27,0.19844268]
[1757363300410,0.61025092,875.66,874.27,1.72212228]
[1757363300609,0.61025092,875.65,874.27,1.72212228]
[1757363300809,0.61025092,875.64,874.27,1.72212228]
[1757363301009,0.61025092,875.63,874.27,1.72212228]
[1757363301209,0.61025092,875.62,874.27,1.72212228]
[1757363301508,0.61025092,875.61,874.27,1.72212228]
[1757363301707,0.61025092,875.6,874.27,1.72212228]
[1757363301907,0.61025092,875.59,874.27,1.72212228]
[1757363302105,0.61025092,875.58,874.27,0.19844268]
[1757363302306,0.61025092,875.57,874.27,0.19844268]
[1757363302609,0.61025092,875.56,874.27,1.72212228]
[1757363302908,0.61025092,875.55,874.27,1.72212228]
[1757363303106,1.5349079,875.84,874.27,1.72212228]
[1757363303404,1.5349079,875.78,874.33,1.5236796]
[1757363303603,2.14843763,875.77,874.33,1.5236796]
[1757363303805,0.61352973,875.76,874.33,1.5236796]
[1757363304107,1.5349079,875.74,874.36,1.5236796]
[1757363304410,2.14843763,875.73,874.36,1.5236796]
[1757363304609,0.61352973,875.72,874.36,1.5236796]
[1757363304909,0.61352973,875.71,874.36,1.5236796]
[1757363305109,0.61352973,875.7,874.36,1.5236796]
[1757363305406,0.55217676,875.69,874.36,1.5236796]
[1757363305709,1.5349079,875.73,874.36,1.5236796]
[1757363306606,1.5349079,875.74,874.36,1.5236796]
[1757363308314,1.5349079,875.73,874.36,1.5236796]
[1757363308816,1.5349079,875.71,874.38,1.5236796]
[1757363309116,1.5349079,875.68,874.41,1.5236796]
[1757363309912,1.5349079,875.66,874.42,1.5236796]
[1757363310119,1.5349079,875.67,874.42,1.5236796]
[1757363310317,1.5349079,875.66,874.42,1.5236796]
[1757363311217,1.38141712,875.66,874.43,1.5236796]
[1757363311914,0.90550054,875.66,874.43,1.5236796]
[1757363312118,2.5591756,876.28,874.44,1.5236796]
[1757363312413,2.5591756,876.28,874.27,0.19844268]
[1757363312414,2.5591756,876.28,874.45,1.5236796]
[1757363312613,2.5591756,876.27,874.44,1.5236796]
[1757363313114,2.5591756,876.3,874.44,1.5236796]
[1757363313414,2.5591756,876.3,874.45,1.5236796]
[1757363313619,2.5591756,876.25,874.46,1.5236796]
[1757363315920,2.5591756,876.24,874.46,1.5236796]
[1757363316419,2.5591756,876.24,874.48,1.5236796]
[1757363316820,2.5591756,876.2,874.48,1.5236796]
[1757363317222,3.16939331,876.19,874.48,1.5236796]
[1757363317417,0.61021771,876.18,874.49,1.5236796]
[1757363317719,0.61021771,876.17,874.49,1.5236796]
[1757363317921,0.61021771,876.16,874.49,1.5236796]
[1757363318121,0.61021771,876.15,874.49,1.5236796]
[1757363318321,0.61021771,876.14,874.43,1.5236796]
[1757363318519,0.61021771,876.13,874.46,1.5236796]
[1757363318723,0.61021771,876.12,874.46,1.5236796]
[1757363319022,0.61021771,876.11,874.46,1.5236796]
[1757363319321,0.61021771,876.1,874.46,1.5236796]
[1757363319518,0.61021771,876.09,874.46,1.5236796]
[1757363319722,0.61021771,876.08,874.46,1.5236796]
[1757363319923,0.61021771,876.07,874.45,1.5236796]
[1757363320117,0.61021771,876.06,874.46,1.5236796]
[1757363320320,0.61021771,876.05,874.46,1.5236796]
[1757363320518,0.61021771,876.04,874.45,1.5236796]
[1757363320722,0.61021771,876.03,874.42,1.5236796]
[1757363321023,0.61021771,876.02,874.42,1.5236796]
[1757363321222,0.61021771,876.01,874.42,1.5236796]
[1757363321419,0.61021771,876.0,874.42,1.5236796]
[1757363321723,0.61021771,875.99,874.42,1.5236796]
[1757363322019,0.61021771,875.98,874.42,1.5236796]
[1757363322223,0.61021771,875.97,874.42,1.5236796]
[1757363322421,0.61021771,875.96,874.42,1.5236796]
[1757363322625,0.61021771,875.95,874.42,1.5236796]
[1757363322924,2.5591756,876.42,874.42,1.5236796]
[1757363322925,0.61021771,875.94,874.42,1.5236796]
[1757363323122,0.61021771,875.93,874.42,1.5236796]
[1757363323421,0.61021771,875.92,874.43,1.5236796]
[1757363323626,0.61021771,875.91,874.43,1.5236796]
[1757363323826,0.61021771,875.9,874.43,1.5236796]
[1757363324024,0.61021771,875.89,874.43,1.5236796]
[1757363324223,0.61021771,875.88,874.43,1.5236796]
[1757363324427,0.61021771,875.87,874.43,1.5236796]
[1757363324624,0.61021771,875.86,874.43,1.5236796]
[1757363324926,0.61021771,875.85,874.43,1.5236796]
[1757363325127,0.61021771,875.84,874.43,1.5236796]
[1757363325324,0.61021771,875.83,874.43,1.5236796]
[1757363325624,0.61021771,875.82,874.43,1.5236796]
[1757363325928,0.61021771,875.81,874.42,1.5236796]
[1757363326128,0.61021771,875.8,874.42,1.5236796]
[1757363326323,0.54919594,875.79,874.42,1.5236796]
[1757363326627,2.5591756,876.42,874.43,1.5236796]
[1757363327627,3.5478291,876.76,874.43,1.5236796]
[1757363327628,2.5591756,876.41,874.43,1.5236796]
[1757363328124,2.5591756,876.32,874.47,1.5236796]
[1757363328726,2.5591756,876.31,874.47,1.5236796]
[1757363329228,2.5591756,876.33,874.46,1.5236796]
[1757363329626,2.5591756,876.33,874.47,1.5236796]
[1757363329831,2.5591756,876.36,874.45,1.5236796]
[1757363330228,2.5591756,876.37,874.44,1.5236796]
[1757363330431,2.5591756,876.37,874.43,1.5236796]
[1757363330628,2.5591756,876.37,874.46,1.5236796]
[1757363330828,2.5591756,876.3,874.46,1.5236796]
[1757363331028,2.5591756,876.3,874.39,1.5236796]
[1757363331232,3.5478291,876.84,874.39,1.5236796]
[1757363331233,2.5591756,876.47,874.39,1.5236796]
[1757363331733,2.5591756,876.46,874.39,1.5236796]
[1757363331934,1.5353032,875.74,874.39,1.5236796]
[1757363332233,1.38177289,875.74,874.39,1.5236796]
[1757363332634,2.5591756,876.47,874.4,1.5236796]
[1757363334436,2.5591756,876.46,874.4,1.5236796]
[1757363335935,2.5591756,876.46,874.41,1.5236796]
[1757363336135,2.5591756,876.45,874.41,1.5236796]
[1757363337636,2.5591756,876.44,874.41,1.5236796]
[1757363338438,0.60824784,876.43,874.41,1.5236796]
[1757363338637,0.60824784,876.42,874.41,1.5236796]
[1757363338835,0.60824784,876.41,874.41,1.5236796]
[1757363339034,0.60824784,876.4,874.42,1.5236796]
[1757363339233,0.60824784,876.39,874.42,1.5236796]
[1757363339536,0.60824784,876.38,874.42,1.5236796]
[1757363339737,0.60824784,876.37,874.42,1.5236796]
[1757363339938,0.60824784,876.36,874.43,1.5236796]
[1757363340138,0.60824784,876.35,874.43,1.5236796]
[1757363340339,0.60824784,876.34,874.4,1.5236796]
[1757363340639,0.60824784,876.33,874.4,1.5236796]
[1757363340838,0.60824784,876.32,874.49,1.5236796]
[1757363341036,0.60824784,876.31,874.49,1.5236796]
[1757363341242,2.5591756,876.17,874.49,1.5236796]
[1757363341436,0.60824784,876.16,874.49,1.5236796]
[1757363341739,0.60824784,876.15,874.49,1.5236796]
[1757363341940,0.60824784,876.14,874.49,1.5236796]
[1757363342237,0.60824784,876.13,874.49,1.5236796]
[1757363342440,0.60824784,876.12,874.49,1.5236796]
[1757363342637,0.60824784,876.11,874.49,1.5236796]
[1757363342843,0.60824784,876.1,874.49,1.5236796]
[1757363343141,0.60824784,876.09,874.49,1.5236796]
[1757363343342,0.60824784,876.08,874.49,1.5236796]
[1757363343639,0.60824784,876.07,874.49,1.5236796]
[1757363343839,0.60824784,876.06,874.49,1.5236796]
[1757363344040,0.60824784,876.05,874.49,1.5236796]
[1757363344240,0.60824784,876.04,874.5,1.5236796]
[1757363344439,0.60824784,876.03,874.5,1.5236796]
[1757363344642,0.54742306,876.02,874.5,1.5236796]
[1757363344939,2.5591756,876.13,874.65,1.0216604]
[1757363346044,2.5591756,876.13,874.5,1.5236796]
[1757363346244,2.5591756,876.13,874.48,1.5236796]
[1757363346444,2.5591756,876.18,874.48,1.5236796]
[1757363346940,2.5591756,876.18,874.47,1.5236796]
[1757363347144,2.5591756,876.18,874.48,1.5236796]
[1757363347545,2.5591756,876.17,874.48,1.5236796]
[1757363348443,2.5591756,876.19,874.48,1.5236796]
[1757363348941,2.5591756,876.18,874.48,1.5236796]
[1757363349346,2.5591756,876.18,874.49,1.5236796]
[1757363349542,2.5591756,876.17,874.49,1.5236796]
[1757363350442,2.5591756,876.17,874.54,1.5236796]
[1757363350646,2.5591756,876.21,874.54,1.5236796]
[1757363351148,2.5591756,876.22,874.54,1.5236796]
[1757363352146,2.5591756,876.22,874.5,1.5236796]
[1757363352348,1.5362103,875.67,874.5,1.5236796]
[1757363352542,1.38258928,875.67,874.5,1.5236796]
[1757363353347,2.5591756,876.33,874.5,1.5236796]
[1757363356048,2.5591756,876.33,874.27,0.19844268]
[1757363356049,2.5591756,876.33,874.51,1.5236796]
[1757363356250,2.5591756,876.3,874.51,1.5236796]
[1757363356746,0.60944305,876.29,874.51,1.5236796]
[1757363357050,0.60944305,876.28,874.52,1.5236796]
[1757363357251,0.60944305,876.27,874.39,1.5236796]
[1757363357446,0.60944305,876.26,874.39,1.5236796]
[1757363357647,0.60944305,876.25,874.39,1.5236796]
[1757363357845,0.60944305,876.24,874.39,1.5236796]
[1757363358046,0.60944305,876.23,874.39,1.5236796]
[1757363358348,0.60944305,876.22,874.39,1.5236796]
[1757363358547,0.60944305,876.21,874.38,1.5236796]
[1757363358748,0.60944305,876.2,874.38,1.5236796]
[1757363358951,0.60944305,876.19,874.36,1.5236796]